[Event "FIDE WCCC G10 2018"]
[Site "Santiago de Compostela"]
[Date "2018.11.11"]
[Round "7"]
[White "Rasheva, Nora"]
[Black "Kurmanalina, Deniza"]
[Result "1/2-1/2"]
[ECO "E30"]
[WhiteElo "1495"]
[BlackElo "1320"]
[Annotator "NA RC"]
[PlyCount "192"]
[EventDate "2018.11.04"]
[EventType "swiss"]
[EventCountry "ESP"]
[SourceTitle "playchess.com"]
[Source "ChessBase"]
[SourceQuality "1"]
[TimeControl "40/5400+30:1800+30"]

1. d4 {[%emt 0:00:00]} Nf6 {[%emt 0:00:00]} 2. c4 {[%emt 0:00:00]} e6 {[%emt 0:00:00]} 3. Nc3 {[%emt 0:00:14]} Bb4 {[%emt 0:00:00]} 4. Bg5 {[%emt 0:01:30]} c5 {[%emt 0:05:15]} 5. d5 {[%emt 0:09:35]} exd5 {[%emt 0:06:27]} 6. cxd5 {[%emt 0:00:50]} d6 {[%emt 0:01:05]} 7. a3 {[%emt 0:04:07]} Bxc3+ {[%emt 0:02:56]} 8. bxc3 {[%emt 0:00:09]} Nbd7 {[%emt 0:01:06]} 9. Nf3 {[%emt 0:06:43]} Qa5 {[%emt 0:07:06]} 10. Bd2 {[%emt 0:03:08]} c4 {[%emt 0:09:37]} 11. e4 {[%emt 0:15:12]} Nxe4 {[%emt 0:13:38]} 12. Bxc4 {[%emt 0:08:49]} O-O {[%emt 0:00:12]} 13. O-O {[%emt 0:00:12]} Nb6 {[%emt 0:01:48]} 14. Bb3 {[%emt 0:06:06]} Nxd5 {[%emt 0:20:40]} 15. c4 {[%emt 0:00:51]} Nxd2 {[%emt 0:00:43]} 16. Qxd2 {[%emt 0:00:08]} Qxd2 {[%emt 0:00:23]} 17. Nxd2 {[%emt 0:00:05]} Nf6 {[%emt 0:00:17]} 18. Rfe1 {[%emt 0:02:21]} Be6 {[%emt 0:00:46]} 19. Ne4 {[%emt 0:01:14]} Nxe4 {[%emt 0:00:40]} 20. Rxe4 {[%emt 0:00:08]} Rfd8 {[%emt 0:00:24]} 21. Rd4 {[%emt 0:01:11]} Rac8 {[%emt 0:01:08]} 22. a4 {[%emt 0:03:59]} g6 {[%emt 0:00:36]} 23. Rad1 {[%emt 0:00:38]} a6 {[%emt 0:01:35]} 24. a5 {[%emt 0:02:49]} Rc5 {[%emt 0:02:07]} 25. Rxd6 {[%emt 0:01:44]} Rxd6 {[%emt 0:00:45]} 26. Rxd6 {[%emt 0:00:04]} Rxa5 {[%emt 0:01:47]} 27. f3 {[%emt 0:00:43]} Rc5 {[%emt 0:07:13]} 28. Rb6 {[%emt 0:00:55]} Rc7 {[%emt 0:02:29]} 29. c5 {[%emt 0:05:15]} Bxb3 {[%emt 0:02:05]} 30. Rxb3 {[%emt 0:00:07]} Kf8 {[%emt 0:01:08]} 31. Kf2 {[%emt 0:01:13]} Ke7 {[%emt 0:00:09]} 32. Rb6 {[%emt 0:00:07]} Kd8 {[%emt 0:00:42]} 33. c6 {[%emt 0:00:53]} Rxc6 {[%emt 0:00:42]} 34. Rxb7 {[%emt 0:00:05]} Rc7 {[%emt 0:00:03]} 35. Rb8+ {[%emt 0:00:34]} Ke7 {[%emt 0:00:21]} 36. Ra8 {[%emt 0:00:07]} Rc6 {[%emt 0:00:08]} 37. Ra7+ {[%emt 0:01:17]} Ke6 {[%emt 0:00:07]} 38. Kg3 {[%emt 0:00:04]} h5 {[%emt 0:00:45]} 39. Kh4 {[%emt 0:03:12]} Kf6 {[%emt 0:01:14]} 40. h3 {[%emt 0:00:00]} Kg7 {[%emt 0:00:00]} 41. g4 {[%emt 0:03:58]} hxg4 {[%emt 0:03:42]} 42. hxg4 {[%emt 0:00:22]} Rf6 {[%emt 0:01:27]} 43. g5 {[%emt 0:02:16]} Rxf3 {[%emt 0:00:43]} 44. Rxa6 {[%emt 0:00:06]} Rf4+ {[%emt 0:00:30]} 45. Kg3 {[%emt 0:00:07]} Rf5 {[%emt 0:00:54]} 46. Kg4 {[%emt 0:00:29]} Rf1 {[%emt 0:00:13]} 47. Ra7 {[%emt 0:03:18]} Re1 {[%emt 0:00:25]} 48. Kf4 {[%emt 0:04:43]} Re6 {[%emt 0:02:56]} 49. Rb7 {[%emt 0:02:32]} Re8 {[%emt 0:01:12]} 50. Rb6 {[%emt 0:02:13]} Re7 {[%emt 0:01:13]} 51. Kg4 {[%emt 0:01:17]} Rd7 {[%emt 0:00:32]} 52. Kf4 {[%emt 0:06:29]} Kf8 {[%emt 0:00:24]} 53. Ke5 {[%emt 0:00:26]} Ke7 {[%emt 0:00:31]} 54. Ra6 {[%emt 0:01:54]} Rc7 {[%emt 0:00:29]} 55. Ra5 {[%emt 0:06:56]} Rb7 {[%emt 0:02:15]} 56. Kf4 {[%emt 0:02:39]} f5 {[%emt 0:03:09]} 57. Ke5 {[%emt 0:06:51]} Kf7 {[%emt 0:01:14]} 58. Ra4 {[%emt 0:01:20]} Kg7 {[%emt 0:00:45]} 59. Kf4 {[%emt 0:01:03]} Re7 {[%emt 0:00:26]} 60. Rc4 {[%emt 0:00:46]} Kf7 {[%emt 0:00:25]} 61. Rb4 {[%emt 0:01:17]} Re4+ {[%emt 0:01:23]} 62. Rxe4 {[%emt 0:00:08]} fxe4 {[%emt 0:00:04]} 63. Kxe4 {[%emt 0:00:07]} Ke6 {[%emt 0:00:04]} 64. Kf4 {[%emt 0:00:18]} Kd5 {[%emt 0:00:06]} 65. Kf3 {[%emt 0:00:30]} Ke5 {[%emt 0:00:11]} 66. Kg4 {[%emt 0:00:05]} Ke4 {[%emt 0:00:05]} 67. Kg3 {[%emt 0:00:16]} Kf5 {[%emt 0:00:07]} 68. Kh4 {[%emt 0:00:03]} Kf4 {[%emt 0:00:05]} 69. Kh3 {[%emt 0:00:04]} Kxg5 {[%emt 0:00:04]} 70. Kg3 {[%emt 0:00:20]} Kh5 {[%emt 0:00:18]} 71. Kh3 {[%emt 0:00:33]} g5 {[%emt 0:00:21]} 72. Kg3 {[%emt 0:00:17]} Kg6 {[%emt 0:00:05]} 73. Kg4 {[%emt 0:00:14]} Kf6 {[%emt 0:00:08]} 74. Kg3 {[%emt 0:01:09]} Ke5 {[%emt 0:00:38]} 75. Kg4 {[%emt 0:00:12]} Kf6 {[%emt 0:00:05]} 76. Kg3 {[%emt 0:00:11]} Kf5 {[%emt 0:00:05]} 77. Kf3 {[%emt 0:00:08]} g4+ {[%emt 0:00:32]} 78. Kg3 {[%emt 0:00:10]} Kg5 {[%emt 0:00:13]} 79. Kg2 {[%emt 0:00:54]} Kh5 {[%emt 0:00:15]} 80. Kg3 {[%emt 0:00:06]} Kg5 {[%emt 0:00:04]} 81. Kg2 {[%emt 0:00:09]} Kh4 {[%emt 0:00:06]} 82. Kh2 {[%emt 0:00:13]} Kg5 {[%emt 0:01:06]} 83. Kg3 {[%emt 0:00:11]} Kf5 {[%emt 0:00:04]} 84. Kg2 {[%emt 0:00:09]} Kf4 {[%emt 0:00:06]} 85. Kf2 {[%emt 0:00:04]} g3+ {[%emt 0:00:19]} 86. Kg2 {[%emt 0:00:12]} Kg4 {[%emt 0:00:06]} 87. Kg1 {[%emt 0:00:20]} Kf4 {[%emt 0:00:22]} 88. Kg2 {[%emt 0:00:11]} Kg4 {[%emt 0:00:08]} 89. Kg1 {[%emt 0:00:04]} Kf3 {[%emt 0:00:13]} 90. Kf1 {[%emt 0:00:06]} Kg4 {[%emt 0:00:24]} 91. Kg2 {[%emt 0:00:16]} Kf4 {[%emt 0:00:05]} 92. Kg1 {[%emt 0:00:06]} Ke3 {[%emt 0:00:48]} 93. Kg2 {[%emt 0:00:11]} Kf4 {[%emt 0:00:04]} 94. Kg1 {[%emt 0:00:05]} Kf3 {[%emt 0:00:02]} 95. Kf1 {[%emt 0:00:06]} g2+ {[%emt 0:00:03]} 96. Kg1 {[%emt 0:00:07]} Kg3 {[%emt 0:00:06]} 1/2-1/2

[Event "FIDE WCCC G10 2018"]
[Site "Santiago de Compostela"]
[Date "2018.11.11"]
[Round "7"]
[White "Yildiz, Elif Zeren"]
[Black "Edithso, Samantha"]
[Result "0-1"]
[ECO "B50"]
[WhiteElo "1448"]
[BlackElo "1879"]
[Annotator "NA RC"]
[PlyCount "138"]
[EventDate "2018.11.04"]
[EventType "swiss"]
[EventCountry "ESP"]
[SourceTitle "playchess.com"]
[Source "ChessBase"]
[SourceQuality "1"]
[TimeControl "40/5400+30:1800+30"]

1. e4 {[%emt 0:00:00]} c5 {[%emt 0:00:00]} 2. Nf3 {[%emt 0:00:00]} d6 {[%emt 0:00:00]} 3. c3 {[%emt 0:00:07]} Nf6 {[%emt 0:00:00]} 4. Bd3 {[%emt 0:00:11]} Nc6 {[%emt 0:00:15]} 5. Bc2 {[%emt 0:00:39]} Bg4 {[%emt 0:00:30]} 6. d3 {[%emt 0:00:41]} Qd7 $146 {[%emt 0:00:36] B50: Sicilian: 2...d6, Miscellaneous} ({Predecessor:} 6... e6 7. h3 Bh5 8. Bf4 d5 9. g4 Bg6 10. Nbd2 Bd6 11. e5 Bc7 12. Qe2 Nd7 13. O-O-O b5 14. d4 Bxc2 15. Kxc2 c4 {0-1 (32) Jobava,B (2705)-Navara,D (2726) Heraklio 2017}) 7. Be3 {[%emt 0:01:33]} g6 {[%emt 0:01:38]} 8. h3 {[%emt 0:02:35]} Bxf3 {[%emt 0:00:17]} 9. Qxf3 {[%emt 0:00:09]} Bg7 {[%emt 0:00:10]} 10. Nd2 {[%emt 0:01:21]} O-O {[%emt 0:01:17]} 11. g4 {[%emt 0:03:53]} b5 {[%emt 0:01:33]} 12. Nf1 {[%emt 0:02:14]} ({Better is} 12. Qg2 $11) 12... b4 {[%emt 0:00:42]} 13. c4 {[%emt 0:01:23]} Qe6 {[%emt 0:00:39]} 14. Ng3 {[%emt 0:01:32]} Nd7 {[%emt 0:01:32]} 15. Rb1 $1 {[%emt 0:01:27]} a5 {[%emt 0:00:32]} 16. O-O {[%emt 0:01:56]} a4 {[%emt 0:01:14]} 17. Qd1 {[%emt 0:02:22]} a3 {[%emt 0:01:59]} 18. bxa3 {[%emt 0:01:06]} Rxa3 {[%emt 0:00:52]} 19. Bb3 {[%emt 0:02:29]} Nd4 {[%emt 0:09:44]} 20. Kg2 {[%emt 0:02:20]} Nxb3 {[%emt 0:00:58]} 21. axb3 {[%emt 0:01:37]} Rfa8 {[%emt 0:03:28]} 22. f4 {[%emt 0:03:21]} Ra2+ {[%emt 0:00:31]} 23. Kg1 {[%emt 0:01:38]} Qf6 {[%emt 0:08:23]} 24. g5 {[%emt 0:02:35]} (24. Ne2 $17) 24... Qe6 {[%emt 0:00:16]} 25. f5 {[%emt 0:01:04] [#]} Qe5 $1 {[%emt 0:02:31]} 26. Qg4 {[%emt 0:02:05]} gxf5 {[%emt 0:06:31]} 27. Rxf5 {[%emt 0:03:57]} Ra1 {[%emt 0:06:00]} 28. Rbf1 {[%emt 0:07:50]} Qe6 {[%emt 0:03:30]} 29. Qh4 {[%emt 0:06:33]} Ne5 {[%emt 0:00:46]} 30. Qh5 {[%emt 0:08:58]} Qg6 {[%emt 0:01:50]} 31. d4 {[%emt 0:04:09]} cxd4 {[%emt 0:03:07]} 32. Bxd4 {[%emt 0:01:02]} Rxf1+ {[%emt 0:00:16]} 33. Rxf1 {[%emt 0:00:16]} Qxh5 {[%emt 0:00:36]} 34. Nxh5 {[%emt 0:00:42]} Nf3+ {[%emt 0:00:35]} 35. Rxf3 {[%emt 0:00:59]} Bxd4+ {[%emt 0:00:06]} 36. Kf1 {[%emt 0:01:49]} Ra1+ {[%emt 0:03:57]} 37. Ke2 {[%emt 0:01:39]} Bc3 {[%emt 0:00:49]} 38. Kd3 {[%emt 0:02:05]} Rb1 {[%emt 0:00:38]} 39. Ng3 {[%emt 0:00:39]} e6 {[%emt 0:00:48]} 40. Kc2 {[%emt 0:00:00]} Rb2+ {[%emt 0:00:00]} 41. Kd1 {[%emt 0:14:45]} Rxb3 {[%emt 0:01:04]} 42. Rd3 {[%emt 0:00:42]} Rb1+ {[%emt 0:00:32]} 43. Kc2 {[%emt 0:03:03]} Rb2+ {[%emt 0:00:27]} 44. Kc1 {[%emt 0:00:15]} Rg2 {[%emt 0:00:15]} 45. h4 {[%emt 0:02:39]} Kf8 {[%emt 0:01:33]} 46. Nh5 {[%emt 0:04:57]} Ke7 {[%emt 0:01:57]} 47. Nf6 {[%emt 0:02:01]} Bxf6 {[%emt 0:00:20]} 48. gxf6+ {[%emt 0:00:13]} Kxf6 {[%emt 0:00:05]} 49. Rxd6 {[%emt 0:00:12]} b3 {[%emt 0:01:17]} 50. Rb6 {[%emt 0:08:35]} Rc2+ {[%emt 0:00:32]} 51. Kd1 {[%emt 0:01:31]} Rxc4 {[%emt 0:00:07]} 52. Rxb3 {[%emt 0:00:08]} Rxe4 {[%emt 0:00:06]} 53. h5 {[%emt 0:00:16]} Kg5 {[%emt 0:00:22]} 54. Rb5+ {[%emt 0:02:12]} f5 {[%emt 0:00:19]} 55. Rb7 {[%emt 0:00:30]} h6 {[%emt 0:00:29]} 56. Rg7+ {[%emt 0:02:39]} Kxh5 {[%emt 0:00:07]} 57. Rg2 {[%emt 0:00:12]} e5 {[%emt 0:00:50]} 58. Kd2 {[%emt 0:00:21]} Rg4 {[%emt 0:00:14]} 59. Rh2+ {[%emt 0:00:31]} Kg5 {[%emt 0:00:11]} 60. Ke3 {[%emt 0:00:07]} h5 {[%emt 0:00:46]} 61. Kf3 {[%emt 0:01:35]} h4 {[%emt 0:00:12]} 62. Ke3 {[%emt 0:00:30]} Rg3+ {[%emt 0:00:08]} 63. Kf2 {[%emt 0:00:17]} Kg4 {[%emt 0:00:12]} 64. Rh1 {[%emt 0:00:20]} h3 {[%emt 0:00:29]} 65. Ke2 {[%emt 0:00:10]} f4 {[%emt 0:00:11]} 66. Kf2 {[%emt 0:00:05]} Rg2+ {[%emt 0:00:20]} 67. Kf1 $19 {[%emt 0:00:05]} Kg3 {[%emt 0:00:19]} 68. Ke1 {[%emt 0:00:18]} h2 {[%emt 0:00:10]} 69. Kf1 {[%emt 0:00:05]} e4 {[%emt 0:00:43]} 0-1

[Event "FIDE WCCC G10 2018"]
[Site "Santiago de Compostela"]
[Date "2018.11.11"]
[Round "7"]
[White "Qu, Greta"]
[Black "Braeutigam, Katerina"]
[Result "0-1"]
[ECO "B12"]
[WhiteElo "1360"]
[BlackElo "1647"]
[Annotator "NA RC"]
[PlyCount "70"]
[EventDate "2018.11.04"]
[EventType "swiss"]
[EventCountry "ESP"]
[SourceTitle "playchess.com"]
[Source "ChessBase"]
[SourceQuality "1"]
[TimeControl "40/5400+30:1800+30"]

1. e4 {[%emt 0:00:00]} c6 {[%emt 0:00:00]} 2. d4 {[%emt 0:00:00]} d5 {[%emt 0:00:00]} 3. e5 {[%emt 0:00:00]} Bf5 {[%emt 0:00:00]} 4. h4 {[%emt 0:00:03]} h5 {[%emt 0:00:58]} 5. Bd3 {[%emt 0:01:56]} Bxd3 {[%emt 0:00:15]} 6. Qxd3 {[%emt 0:00:04]} e6 {[%emt 0:00:38]} 7. Nf3 {[%emt 0:00:54]} Nd7 {[%emt 0:01:12]} 8. Nc3 {[%emt 0:02:30]} c5 {[%emt 0:00:51]} 9. Be3 {[%emt 0:02:14]} cxd4 {[%emt 0:00:18]} 10. Bxd4 {[%emt 0:00:09]} Ne7 {[%emt 0:01:07]} 11. Be3 {[%emt 0:01:51]} Ng6 {[%emt 0:04:31]} 12. Bd4 {[%emt 0:01:23]} Be7 {[%emt 0:02:27]} 13. g3 {[%emt 0:00:16]} a6 {[%emt 0:00:55]} 14. O-O-O {[%emt 0:01:25]} Qc7 {[%emt 0:10:31]} 15. Rde1 {[%emt 0:01:43]} Bc5 {[%emt 0:10:45]} 16. Bxc5 {[%emt 0:01:11]} Qxc5 {[%emt 0:00:17]} 17. Re2 {[%emt 0:01:07]} b5 {[%emt 0:10:53]} 18. Rhe1 {[%emt 0:12:42]} Nb6 {[%emt 0:12:25]} 19. Nd4 {[%emt 0:04:28]} Nc4 {[%emt 0:04:18]} 20. f4 {[%emt 0:02:13]} Ne7 {[%emt 0:05:38]} 21. f5 {[%emt 0:13:26]} Kd7 {[%emt 0:07:07]} 22. Rf1 {[%emt 0:17:10]} Raf8 {[%emt 0:04:35]} 23. f6 {[%emt 0:10:44]} gxf6 {[%emt 0:01:06]} 24. Rxf6 {[%emt 0:01:27]} Ng6 {[%emt 0:01:30]} 25. Nxe6 {[%emt 0:02:03]} fxe6 {[%emt 0:04:51]} 26. Qxg6 {[%emt 0:02:08]} Rxf6 {[%emt 0:06:11]} 27. Qxf6 {[%emt 0:01:45]} Rf8 {[%emt 0:01:44]} 28. Qg7+ {[%emt 0:00:40]} Kd8 {[%emt 0:01:07]} 29. Qg5+ {[%emt 0:00:29]} Kc8 {[%emt 0:00:49]} 30. Nd1 {[%emt 0:04:33]} Rf1 {[%emt 0:02:46]} 31. Qg8+ {[%emt 0:01:14]} Kc7 {[%emt 0:00:51]} 32. Qxe6 {[%emt 0:01:18]} Rxd1+ {[%emt 0:00:31]} 33. Kxd1 {[%emt 0:00:08]} Qd4+ {[%emt 0:00:06]} 34. Kc1 {[%emt 0:00:44]} Qg1+ {[%emt 0:00:08]} 35. Re1 {[%emt 0:00:04]} Qxe1# {[%emt 0:00:09]} 0-1

[Event "FIDE WCCC G10 2018"]
[Site "Santiago de Compostela"]
[Date "2018.11.11"]
[Round "7"]
[White "Unurzul, Davaakhuu"]
[Black "Zhapova, Yana"]
[Result "0-1"]
[ECO "B13"]
[WhiteElo "1342"]
[BlackElo "1821"]
[Annotator "NA RC"]
[PlyCount "90"]
[EventDate "2018.11.04"]
[EventType "swiss"]
[EventCountry "ESP"]
[SourceTitle "playchess.com"]
[Source "ChessBase"]
[SourceQuality "1"]
[TimeControl "40/5400+30:1800+30"]

1. e4 {[%emt 0:00:00]} c6 {[%emt 0:00:00]} 2. d4 {[%emt 0:00:11]} d5 {[%emt 0:00:00]} 3. exd5 {[%emt 0:00:17]} cxd5 {[%emt 0:00:00]} 4. Nc3 {[%emt 0:01:39]} Nc6 {[%emt 0:04:47]} 5. h3 {[%emt 0:01:20] B13: Caro-Kann: Exchange Variation and Panov-Botvinnik Attack} (5. Nf3 g6 {½-½ (5) Ivanovic,B (2420)-Dizdarevic,E (2461) Djenovici 2018}) 5... Nf6 {[%emt 0:01:34]} 6. Nf3 {[%emt 0:00:54] LiveBook: 3 Games} Bf5 {[%emt 0:01:30]} 7. Bd3 {[%emt 0:02:14]} Bxd3 {[%emt 0:00:36]} 8. Qxd3 {[%emt 0:00:13]} e6 {[%emt 0:00:10]} 9. O-O {[%emt 0:00:23]} Bd6 {[%emt 0:02:50]} 10. Nb5 {[%emt 0:04:02]} Be7 $146 {[%emt 0:00:57]} ({Predecessor:} 10... Bb8 11. Bd2 a6 12. Nc3 O-O {½-½ (38) Walter,N-Wisniewski,T Stetten 1988}) 11. Ne5 {[%emt 0:11:22]} O-O {[%emt 0:03:24]} 12. Qg3 {[%emt 0:10:37]} (12. Bf4 $15) 12... Ne4 {[%emt 0:05:10]} 13. Qg4 {[%emt 0:04:05]} Bg5 {[%emt 0:04:15]} 14. Bxg5 {[%emt 0:01:15]} Qxg5 {[%emt 0:00:14]} 15. Qxg5 {[%emt 0:00:16]} Nxg5 {[%emt 0:00:05]} 16. Nxc6 {[%emt 0:01:38]} bxc6 {[%emt 0:00:09]} 17. Nc3 {[%emt 0:00:27]} h6 {[%emt 0:03:32]} 18. f4 {[%emt 0:00:30]} Nh7 {[%emt 0:00:08]} 19. Na4 {[%emt 0:00:45]} Rab8 {[%emt 0:01:02]} 20. b3 {[%emt 0:00:18]} Nf6 {[%emt 0:01:16]} 21. Nc5 {[%emt 0:00:16]} Rbd8 {[%emt 0:15:11]} 22. Rad1 {[%emt 0:02:15]} Nd7 {[%emt 0:01:29]} 23. Nxd7 {[%emt 0:01:56]} Rxd7 {[%emt 0:00:02]} 24. Rf3 {[%emt 0:00:17]} Rb8 {[%emt 0:01:20]} 25. Rc3 {[%emt 0:00:11]} Rc7 {[%emt 0:00:42]} 26. a3 {[%emt 0:01:06]} Kf8 {[%emt 0:01:25]} 27. b4 {[%emt 0:00:41]} Ke7 {[%emt 0:00:24]} 28. Rb1 {[%emt 0:00:18]} Kd6 {[%emt 0:01:29]} 29. Kf2 {[%emt 0:02:06]} f6 {[%emt 0:02:47]} 30. Re3 {[%emt 0:04:00]} g5 {[%emt 0:05:30]} 31. Rbe1 {[%emt 0:00:50]} Re7 {[%emt 0:01:37]} 32. g3 {[%emt 0:01:19]} Rg8 {[%emt 0:03:01]} 33. f5 {[%emt 0:03:51]} e5 {[%emt 0:01:57]} 34. g4 {[%emt 0:01:44]} h5 {[%emt 0:02:10]} 35. Kf3 {[%emt 0:08:28]} hxg4+ {[%emt 0:08:56]} 36. Kxg4 {[%emt 0:01:23]} e4 {[%emt 0:01:17]} 37. Kg3 {[%emt 0:04:01]} Rh7 {[%emt 0:00:40]} 38. Rf1 {[%emt 0:02:22]} Rgh8 {[%emt 0:00:22]} 39. Kg2 {[%emt 0:01:00]} Rh4 {[%emt 0:00:25]} 40. a4 {[%emt 0:00:00]} a6 {[%emt 0:00:00]} 41. a5 {[%emt 0:18:23]} g4 {[%emt 0:20:46]} 42. hxg4 {[%emt 0:01:43] [#]} Rh2+ $1 {[%emt 0:01:09]} ({But not} 42... Rxg4+ 43. Rg3 $17) 43. Kg3 $19 {[%emt 0:07:10]} Rxc2 {[%emt 0:00:10]} 44. Ree1 {[%emt 0:13:53]} Rc3+ {[%emt 0:07:30]} 45. Kf4 {[%emt 0:02:12]} Rhh3 0-1

[Event "FIDE WCCC G10 2018"]
[Site "Santiago de Compostela"]
[Date "2018.11.11"]
[Round "7"]
[White "Abdinova, Narmin"]
[Black "Velea, Sophie"]
[Result "0-1"]
[ECO "B22"]
[WhiteElo "1320"]
[BlackElo "1593"]
[Annotator "NA RC"]
[PlyCount "166"]
[EventDate "2018.11.04"]
[EventType "swiss"]
[EventCountry "ESP"]
[SourceTitle "playchess.com"]
[Source "ChessBase"]
[SourceQuality "1"]
[TimeControl "40/5400+30:1800+30"]

1. e4 {[%emt 0:00:00]} c5 {[%emt 0:00:00]} 2. c3 {[%emt 0:00:00]} Nf6 {[%emt 0:00:08]} 3. e5 {[%emt 0:00:06]} Nd5 {[%emt 0:00:21]} 4. Bc4 {[%emt 0:00:06]} Nb6 {[%emt 0:00:19]} 5. Bb3 {[%emt 0:00:08]} c4 {[%emt 0:00:06]} 6. Bc2 {[%emt 0:00:03]} d6 {[%emt 0:02:00]} 7. Nf3 {[%emt 0:01:32]} Bg4 {[%emt 0:02:51]} 8. d4 {[%emt 0:00:36]} cxd3 {[%emt 0:04:40]} 9. Qxd3 {[%emt 0:00:16]} d5 {[%emt 0:02:58]} 10. Bf4 {[%emt 0:06:32]} e6 {[%emt 0:01:00]} 11. Nd4 {[%emt 0:01:09]} Nc6 {[%emt 0:03:50]} 12. Nd2 {[%emt 0:01:27]} Bc5 {[%emt 0:04:07]} 13. Nxc6 {[%emt 0:00:15]} bxc6 {[%emt 0:01:19]} 14. Qg3 {[%emt 0:00:37]} g5 {[%emt 0:21:29]} 15. Qxg4 {[%emt 0:03:42]} gxf4 {[%emt 0:00:11]} 16. Qxf4 {[%emt 0:01:27]} Be7 {[%emt 0:02:05]} 17. Nf3 {[%emt 0:06:33]} Qc7 {[%emt 0:05:24]} 18. Ng5 {[%emt 0:06:18]} Bxg5 {[%emt 0:00:36]} 19. Qxg5 {[%emt 0:00:34]} Nc4 {[%emt 0:01:02]} 20. Bxh7 {[%emt 0:14:39]} Nxe5 {[%emt 0:05:06]} 21. Bc2 {[%emt 0:04:50]} Nc4 {[%emt 0:03:42]} 22. b3 {[%emt 0:01:12]} Nb6 {[%emt 0:02:54]} 23. h4 {[%emt 0:03:30]} Kd7 {[%emt 0:03:28]} 24. g4 {[%emt 0:05:29]} Rag8 {[%emt 0:02:09]} 25. Qf6 {[%emt 0:00:14]} Ke8 {[%emt 0:04:32]} 26. g5 {[%emt 0:02:08]} Nd7 {[%emt 0:00:52]} 27. Qf3 {[%emt 0:02:00]} Ne5 {[%emt 0:03:17]} 28. Qe3 {[%emt 0:05:52]} Rxg5 {[%emt 0:10:34]} 29. O-O-O {[%emt 0:10:19]} Rgg8 {[%emt 0:02:03]} 30. h5 {[%emt 0:02:49]} Ng4 {[%emt 0:01:25]} 31. Qf3 {[%emt 0:01:12]} Qe5 {[%emt 0:01:31]} 32. Rhe1 {[%emt 0:09:44]} Qxh5 {[%emt 0:01:41]} 33. Qf4 {[%emt 0:00:18]} Qg5 {[%emt 0:03:04]} 34. Qxg5 {[%emt 0:00:28]} Rxg5 {[%emt 0:00:03]} 35. f4 {[%emt 0:01:00]} Rgh5 {[%emt 0:01:20]} 36. Rg1 {[%emt 0:00:54]} Nf6 {[%emt 0:00:51]} 37. Rd4 {[%emt 0:00:54]} Rh3 {[%emt 0:02:20]} 38. Kb2 {[%emt 0:01:04]} Ke7 {[%emt 0:00:55]} 39. Ra4 {[%emt 0:00:11]} Ra8 {[%emt 0:00:44]} 40. c4 {[%emt 0:00:00]} d4 {[%emt 0:00:00]} 41. Rd1 {[%emt 0:01:02]} c5 {[%emt 0:06:38]} 42. b4 {[%emt 0:00:06]} cxb4 {[%emt 0:12:36]} 43. Rxb4 {[%emt 0:00:38]} Rd8 {[%emt 0:01:07]} 44. Rb7+ {[%emt 0:00:03]} Kf8 {[%emt 0:00:34]} 45. Rxa7 {[%emt 0:00:35]} Ng4 {[%emt 0:04:35]} 46. Rd3 {[%emt 0:03:03]} Ne3 {[%emt 0:02:20]} 47. Bb3 {[%emt 0:01:30]} Rh2+ {[%emt 0:01:52]} 48. Kc1 {[%emt 0:01:39]} Rf2 {[%emt 0:01:29]} 49. c5 {[%emt 0:02:11]} Rxf4 {[%emt 0:01:41]} 50. c6 {[%emt 0:00:08]} Rc8 {[%emt 0:00:48]} 51. Rd7 {[%emt 0:01:25]} Rxc6+ {[%emt 0:00:32]} 52. Kd2 {[%emt 0:00:41]} Nc4+ {[%emt 0:01:04]} 53. Ke2 {[%emt 0:02:46]} e5 {[%emt 0:00:39]} 54. Ba4 {[%emt 0:00:51]} Rb6 {[%emt 0:01:09]} 55. Rd8+ {[%emt 0:00:48]} Kg7 {[%emt 0:00:07]} 56. Rg3+ {[%emt 0:00:08]} Kf6 {[%emt 0:00:15]} 57. Bb3 {[%emt 0:00:12]} Na5 {[%emt 0:01:18]} 58. Ra8 {[%emt 0:00:23]} Nxb3 {[%emt 0:00:13]} 59. axb3 {[%emt 0:00:06]} Rc6 {[%emt 0:01:11]} 60. Ra2 {[%emt 0:00:54]} e4 {[%emt 0:00:41]} 61. Ra4 {[%emt 0:01:00]} Rd6 {[%emt 0:01:05]} 62. Rg2 {[%emt 0:00:37]} Rf3 {[%emt 0:00:25]} 63. Rf2 {[%emt 0:02:24]} d3+ {[%emt 0:00:20]} 64. Kf1 {[%emt 0:00:09]} Rxf2+ {[%emt 0:00:20]} 65. Kxf2 {[%emt 0:00:09]} d2 {[%emt 0:00:09]} 66. Ra1 {[%emt 0:00:32]} d1=Q {[%emt 0:00:10]} 67. Rxd1 {[%emt 0:00:06]} Rxd1 {[%emt 0:00:08]} 68. Ke3 {[%emt 0:00:09]} Rb1 {[%emt 0:00:07]} 69. Kxe4 {[%emt 0:00:05]} Rxb3 {[%emt 0:00:07]} 70. Kd4 {[%emt 0:00:03]} Kg5 {[%emt 0:00:15]} 71. Kc4 {[%emt 0:00:05]} Rh3 {[%emt 0:00:08]} 72. Kd4 {[%emt 0:00:05]} f5 {[%emt 0:00:06]} 73. Ke5 {[%emt 0:00:04]} Re3+ {[%emt 0:00:20]} 74. Kd4 {[%emt 0:00:04]} f4 {[%emt 0:00:13]} 75. Kc4 {[%emt 0:00:11]} f3 {[%emt 0:00:07]} 76. Kd5 {[%emt 0:00:08]} f2 {[%emt 0:00:06]} 77. Kd4 {[%emt 0:00:06]} Re8 {[%emt 0:00:08]} 78. Kd5 {[%emt 0:00:05]} f1=Q {[%emt 0:00:13]} 79. Kd4 {[%emt 0:00:05]} Qd1+ {[%emt 0:00:13]} 80. Kc5 {[%emt 0:00:08]} Rc8+ {[%emt 0:00:11]} 81. Kb6 {[%emt 0:00:02]} Qb3+ {[%emt 0:00:16]} 82. Ka7 {[%emt 0:00:03]} Rc4 {[%emt 0:00:23]} 83. Ka6 {[%emt 0:00:09]} Ra4# {[%emt 0:00:05]} 0-1